[Event "EYCC Girls-U10 2019"]
[Site "Bratislava"]
[Date "2019.08.09"]
[Round "8.1"]
[White "Stoll, Lucia"]
[Black "Shukhman, Anna"]
[Result "0-1"]
[ECO "B27"]
[WhiteElo "1403"]
[BlackElo "1806"]
[Annotator "NA"]
[PlyCount "98"]
[EventDate "2019.08.02"]
[EventType "swiss"]
[EventCountry "SVK"]
[SourceTitle "playchess.com"]
[Source "ChessBase"]
[SourceQuality "1"]
[TimeControl "40/5400+30:1800+30"]

1. e4 {[%emt 0:00:00]} c5 {[%emt 0:00:00]} 2. Nf3 {[%emt 0:00:00]} g6 {[%emt 0:00:00]} 3. c3 {[%emt 0:01:38]} d5 {[%emt 0:00:00]} 4. Bb5+ {[%emt 0:06:50]} Nc6 {[%emt 0:00:00]} 5. e5 {[%emt 0:03:32]} Bg7 {[%emt 0:00:14]} 6. O-O {[%emt 0:02:35]} Bg4 {[%emt 0:00:50]} 7. Bxc6+ {[%emt 0:02:39]} bxc6 {[%emt 0:00:10]} 8. d4 {[%emt 0:01:49]} cxd4 {[%emt 0:00:20]} 9. cxd4 {[%emt 0:00:09]} Qb6 {[%emt 0:01:58]} 10. Nbd2 {[%emt 0:05:34]} e6 {[%emt 0:00:26]} 11. h3 {[%emt 0:00:57]} Bxf3 {[%emt 0:00:14]} 12. Nxf3 {[%emt 0:00:06]} Ne7 {[%emt 0:02:12]} 13. Qe2 {[%emt 0:01:46]} O-O {[%emt 0:01:10]} 14. Be3 {[%emt 0:03:02]} Nf5 {[%emt 0:05:06]} 15. Rac1 {[%emt 0:01:33]} Rfc8 {[%emt 0:01:42]} 16. b3 {[%emt 0:05:22]} Bf8 {[%emt 0:05:15]} 17. Nh2 {[%emt 0:06:05]} Nxd4 {[%emt 0:10:08]} 18. Qd2 {[%emt 0:03:55]} c5 {[%emt 0:00:07]} 19. Bxd4 {[%emt 0:01:29]} cxd4 {[%emt 0:00:08]} 20. Nf3 {[%emt 0:01:19]} a5 {[%emt 0:18:15]} 21. Rxc8 {[%emt 0:10:01]} Rxc8 {[%emt 0:00:08]} 22. Qxd4 {[%emt 0:02:14]} Qb4 {[%emt 0:10:23]} 23. Qb2 {[%emt 0:08:18]} Bc5 {[%emt 0:14:20]} 24. Rc1 {[%emt 0:01:11]} a4 {[%emt 0:02:03]} 25. Ne1 {[%emt 0:07:21]} Bxf2+ {[%emt 0:08:07]} 26. Kf1 {[%emt 0:02:37]} Rxc1 {[%emt 0:00:42]} 27. Qxc1 {[%emt 0:00:06]} Qxe1+ {[%emt 0:00:49]} 28. Qxe1 {[%emt 0:00:18]} Bxe1 {[%emt 0:00:03]} 29. Kxe1 {[%emt 0:00:06]} axb3 {[%emt 0:00:04]} 30. axb3 {[%emt 0:00:09]} Kf8 {[%emt 0:00:12]} 31. Kd2 {[%emt 0:00:40]} Ke7 {[%emt 0:00:09]} 32. Kc3 {[%emt 0:00:28]} Kd7 {[%emt 0:00:07]} 33. Kb4 {[%emt 0:01:23]} Kc6 {[%emt 0:00:16]} 34. h4 {[%emt 0:01:49]} h5 {[%emt 0:01:55]} 35. Ka5 {[%emt 0:01:29]} d4 {[%emt 0:00:48]} 36. Kb4 {[%emt 0:00:44]} Kd5 {[%emt 0:00:09]} 37. Ka3 {[%emt 0:00:14]} d3 {[%emt 0:00:52]} 38. Kb2 {[%emt 0:00:12]} Kd4 {[%emt 0:00:16]} 39. b4 {[%emt 0:00:30]} Ke3 {[%emt 0:01:04]} 40. b5 {[%emt 0:00:00]} d2 {[%emt 0:00:00]} 41. b6 {[%emt 0:01:17]} d1=Q {[%emt 0:00:19]} 42. b7 {[%emt 0:00:16]} Qd8 {[%emt 0:00:04]} 43. Kc3 {[%emt 0:00:33]} Qc7+ {[%emt 0:00:08]} 44. Kb4 {[%emt 0:00:13]} Qxb7+ {[%emt 0:00:08]} 45. Kc5 {[%emt 0:00:10]} Qc7+ {[%emt 0:00:05]} 46. Kb5 {[%emt 0:00:08]} Kd4 {[%emt 0:00:06]} 47. g3 {[%emt 0:00:16]} Qb7+ {[%emt 0:00:05]} 48. Ka5 {[%emt 0:00:15]} Kc4 {[%emt 0:00:06]} 49. Ka4 {[%emt 0:00:12]} Qb4# {[%emt 0:00:12]} 0-1

[Event "EYCC Girls-U10 2019"]
[Site "Bratislava"]
[Date "2019.08.09"]
[Round "8.2"]
[White "Kirtadze, Anastasia"]
[Black "Hnatyshyn, Anastasiia"]
[Result "1/2-1/2"]
[ECO "E06"]
[WhiteElo "1532"]
[BlackElo "1380"]
[Annotator "NA"]
[PlyCount "73"]
[EventDate "2019.08.02"]
[EventType "swiss"]
[EventCountry "SVK"]
[SourceTitle "playchess.com"]
[Source "ChessBase"]
[SourceQuality "1"]
[TimeControl "40/5400+30:1800+30"]

1. d4 {[%emt 0:00:00]} Nf6 {[%emt 0:00:00]} 2. Nf3 {[%emt 0:00:00]} e6 {[%emt 0:00:00]} 3. g3 {[%emt 0:00:23]} d5 {[%emt 0:00:22]} 4. c4 {[%emt 0:00:14]} Be7 {[%emt 0:00:22]} 5. Bg2 {[%emt 0:00:16]} O-O {[%emt 0:00:39]} 6. O-O {[%emt 0:00:08]} dxc4 {[%emt 0:00:30]} 7. Ne5 {[%emt 0:00:14]} Nc6 {[%emt 0:01:11]} 8. Bxc6 {[%emt 0:01:38]} bxc6 {[%emt 0:00:10]} 9. Nxc6 {[%emt 0:00:05]} Qe8 {[%emt 0:01:49]} 10. Nxe7+ {[%emt 0:02:28]} Qxe7 {[%emt 0:00:08]} 11. Nc3 {[%emt 0:05:56]} c5 {[%emt 0:03:49]} 12. dxc5 {[%emt 0:02:28]} Qxc5 {[%emt 0:00:25]} 13. Be3 Qc6 {[%emt 0:00:53]} 14. f3 {[%emt 0:01:54]} Nd5 {[%emt 0:05:25]} 15. Nxd5 {[%emt 0:03:07]} exd5 {[%emt 0:00:19]} 16. Bd4 {[%emt 0:00:39]} Bf5 17. Qd2 {[%emt 0:17:08]} Rfe8 {[%emt 0:10:17]} 18. Rf2 {[%emt 0:06:42]} a6 {[%emt 0:09:17]} 19. Rc1 {[%emt 0:26:48]} Qd6 {[%emt 0:08:41]} 20. Rd1 {[%emt 0:01:43]} Rad8 {[%emt 0:01:42]} 21. Qg5 {[%emt 0:03:22]} Qg6 {[%emt 0:00:13]} 22. Qxg6 {[%emt 0:00:43]} Bxg6 {[%emt 0:00:30]} 23. Rc1 {[%emt 0:01:26]} Rb8 {[%emt 0:04:57]} 24. Rd1 {[%emt 0:01:18]} f6 {[%emt 0:03:44]} 25. Rc1 {[%emt 0:00:51]} Kf7 {[%emt 0:01:26]} 26. Rd1 {[%emt 0:00:22]} Rb5 {[%emt 0:03:30]} 27. Bc3 {[%emt 0:02:13]} Ke6 {[%emt 0:01:43]} 28. Rff1 {[%emt 0:01:32]} Reb8 {[%emt 0:01:06]} 29. Rd2 {[%emt 0:00:37]} a5 {[%emt 0:01:10]} 30. Kf2 {[%emt 0:01:50]} a4 {[%emt 0:00:22]} 31. a3 {[%emt 0:00:25]} Rb3 {[%emt 0:00:37]} 32. Ra1 {[%emt 0:00:49]} h5 {[%emt 0:05:12]} 33. Rc1 {[%emt 0:02:00]} R3b5 {[%emt 0:01:19]} 34. Bd4 {[%emt 0:01:12]} Rb3 {[%emt 0:00:22]} 35. Bc3 {[%emt 0:00:06]} Rh8 {[%emt 0:00:10]} 36. Rd4 {[%emt 0:00:49]} Rhb8 {[%emt 0:00:27]} 37. Rd2 {[%emt 0:00:04] Ke5} 1/2-1/2

[Event "EYCC Girls-U10 2019"]
[Site "Bratislava"]
[Date "2019.08.09"]
[Round "8.3"]
[White "Iudina, Veronika"]
[Black "Smietanska, Wiktoria"]
[Result "0-1"]
[ECO "B22"]
[WhiteElo "1357"]
[BlackElo "1547"]
[Annotator "NA"]
[PlyCount "176"]
[EventDate "2019.08.02"]
[EventType "swiss"]
[EventCountry "SVK"]
[SourceTitle "playchess.com"]
[Source "ChessBase"]
[SourceQuality "1"]
[TimeControl "40/5400+30:1800+30"]

1. e4 {[%emt 0:00:00]} c5 {[%emt 0:00:00]} 2. c3 {[%emt 0:00:00]} Nf6 {[%emt 0:00:00]} 3. e5 {[%emt 0:00:04]} Nd5 {[%emt 0:00:00]} 4. d4 {[%emt 0:00:28]} cxd4 {[%emt 0:00:04]} 5. cxd4 {[%emt 0:00:22]} d6 {[%emt 0:00:12]} 6. Nf3 {[%emt 0:00:44]} Nc6 {[%emt 0:00:41]} 7. Bc4 {[%emt 0:00:46]} Nb6 {[%emt 0:01:26]} 8. Bb5 {[%emt 0:01:12]} a6 {[%emt 0:02:43]} 9. Bxc6+ {[%emt 0:03:54]} bxc6 {[%emt 0:00:23]} 10. O-O {[%emt 0:02:26]} Bg4 {[%emt 0:05:27]} 11. h3 {[%emt 0:07:08]} Bh5 {[%emt 0:02:50]} 12. Nbd2 {[%emt 0:04:51]} e6 {[%emt 0:04:08]} 13. Qc2 {[%emt 0:10:33]} Qc7 {[%emt 0:04:05]} 14. Re1 {[%emt 0:08:57]} Bg6 {[%emt 0:02:48]} 15. Qd1 {[%emt 0:03:02]} Be7 {[%emt 0:03:07]} 16. Ne4 {[%emt 0:02:59]} O-O {[%emt 0:04:33]} 17. exd6 {[%emt 0:04:34]} Bxd6 {[%emt 0:00:09]} 18. Nxd6 {[%emt 0:01:13]} Qxd6 {[%emt 0:00:05]} 19. Ne5 {[%emt 0:01:14]} Rfd8 {[%emt 0:02:56]} 20. Be3 {[%emt 0:06:26]} Bf5 {[%emt 0:10:42]} 21. Qf3 {[%emt 0:06:12]} Nd5 {[%emt 0:05:53]} 22. a3 {[%emt 0:05:37]} Nxe3 {[%emt 0:08:27]} 23. Qxe3 {[%emt 0:03:56]} Rac8 {[%emt 0:07:30]} 24. Rac1 {[%emt 0:02:48]} h6 {[%emt 0:05:05]} 25. Red1 {[%emt 0:03:13]} c5 {[%emt 0:07:44]} 26. dxc5 {[%emt 0:03:19]} Qxd1+ {[%emt 0:00:20]} 27. Rxd1 {[%emt 0:00:08]} Rxd1+ {[%emt 0:00:06]} 28. Kh2 {[%emt 0:00:05]} Rd5 {[%emt 0:01:59]} 29. b4 {[%emt 0:01:53]} a5 {[%emt 0:05:47]} 30. Nc4 {[%emt 0:03:05]} Rd3 {[%emt 0:03:48]} 31. Qf4 {[%emt 0:01:50]} axb4 {[%emt 0:01:10]} 32. axb4 {[%emt 0:00:38]} Rb3 {[%emt 0:01:27]} 33. Na5 {[%emt 0:01:48]} Rd3 {[%emt 0:01:34]} 34. c6 {[%emt 0:02:22]} Rd5 {[%emt 0:02:23]} 35. Qc4 {[%emt 0:00:45]} Bd3 {[%emt 0:00:12]} 36. Qc3 {[%emt 0:00:26]} Rc7 {[%emt 0:01:50]} 37. Nb3 {[%emt 0:01:45]} Rd6 {[%emt 0:01:47]} 38. Na5 {[%emt 0:01:52]} Rd5 {[%emt 0:02:24]} 39. f4 {[%emt 0:02:18]} f6 {[%emt 0:01:49]} 40. Nb3 {[%emt 0:00:00]} Bb5 {[%emt 0:00:00]} 41. Nd4 {[%emt 0:03:14]} Ba6 {[%emt 0:10:04]} 42. Nxe6 {[%emt 0:00:55]} Rc8 {[%emt 0:02:24]} 43. Nc5 {[%emt 0:01:34]} Bb5 {[%emt 0:01:13]} 44. c7 {[%emt 0:03:04]} Rxc7 {[%emt 0:04:06]} 45. Qb3 {[%emt 0:00:28]} Bc6 {[%emt 0:00:07]} 46. b5 {[%emt 0:00:30]} Ba8 {[%emt 0:00:55]} 47. Na6 {[%emt 0:00:17]} Rf7 {[%emt 0:00:50]} 48. b6 {[%emt 0:01:36]} Rd2 {[%emt 0:01:44]} 49. Kg1 {[%emt 0:02:37]} Bd5 {[%emt 0:01:46]} 50. Qc3 {[%emt 0:01:17]} Rxg2+ {[%emt 0:00:47]} 51. Kf1 {[%emt 0:00:05]} Bb7 {[%emt 0:04:47]} 52. Nc5 {[%emt 0:00:23]} Bd5 {[%emt 0:01:59]} 53. b7 {[%emt 0:00:47]} Bxb7 {[%emt 0:01:54]} 54. Nxb7 {[%emt 0:00:17]} Rh2 {[%emt 0:00:11]} 55. Qc8+ {[%emt 0:00:42]} Kh7 {[%emt 0:00:30]} 56. Kg1 {[%emt 0:00:39]} Rd2 {[%emt 0:00:29]} 57. Qc1 {[%emt 0:00:38]} Rfd7 {[%emt 0:00:39]} 58. Qb1+ {[%emt 0:00:20]} g6 {[%emt 0:01:15]} 59. Qb5 {[%emt 0:01:49]} Rc7 {[%emt 0:01:14]} 60. Qb1 {[%emt 0:00:57]} Rcc2 {[%emt 0:00:45]} 61. Nd6 {[%emt 0:01:08]} Rg2+ {[%emt 0:00:23]} 62. Kf1 {[%emt 0:00:48]} Rcf2+ {[%emt 0:00:15]} 63. Ke1 {[%emt 0:00:09]} Rg1+ {[%emt 0:00:07]} 64. Kxf2 {[%emt 0:00:04]} Rxb1 {[%emt 0:00:08]} 65. f5 {[%emt 0:00:24]} gxf5 {[%emt 0:00:38]} 66. Nxf5 {[%emt 0:00:08]} Kg6 {[%emt 0:00:24]} 67. Nh4+ {[%emt 0:00:24]} Kg5 {[%emt 0:00:28]} 68. Kg3 {[%emt 0:00:31]} Rb3+ {[%emt 0:01:09]} 69. Nf3+ {[%emt 0:00:06]} Kf5 {[%emt 0:00:44]} 70. Kf2 {[%emt 0:00:13]} Kf4 {[%emt 0:00:14]} 71. Nd4 {[%emt 0:00:13]} Rxh3 {[%emt 0:00:49]} 72. Ne2+ {[%emt 0:00:07]} Kg4 {[%emt 0:00:51]} 73. Kg2 {[%emt 0:00:09]} Re3 {[%emt 0:00:31]} 74. Kf2 {[%emt 0:00:04]} Rxe2+ {[%emt 0:01:26]} 75. Kxe2 {[%emt 0:00:06]} Kg3 {[%emt 0:00:04]} 76. Kf1 {[%emt 0:00:07]} Kf3 {[%emt 0:00:10]} 77. Kg1 {[%emt 0:00:07]} f5 {[%emt 0:00:06]} 78. Kh2 {[%emt 0:00:05]} f4 {[%emt 0:00:09]} 79. Kg1 {[%emt 0:00:03]} Ke2 {[%emt 0:00:05]} 80. Kg2 {[%emt 0:00:06]} f3+ {[%emt 0:00:04]} 81. Kg3 {[%emt 0:00:05]} f2 {[%emt 0:00:06]} 82. Kg4 {[%emt 0:00:03]} f1=Q {[%emt 0:00:07]} 83. Kh5 {[%emt 0:00:04]} Qg2 {[%emt 0:00:09]} 84. Kxh6 {[%emt 0:00:08]} Qg8 {[%emt 0:00:06]} 85. Kh5 {[%emt 0:00:05]} Qg7 {[%emt 0:00:11]} 86. Kh4 {[%emt 0:00:06]} Kf3 {[%emt 0:00:06]} 87. Kh5 {[%emt 0:00:06]} Kf4 {[%emt 0:00:09]} 88. Kh4 {[%emt 0:00:06]} Qh6# {[%emt 0:00:06]} 0-1

[Event "EYCC Girls-U10 2019"]
[Site "Bratislava"]
[Date "2019.08.09"]
[Round "8.4"]
[White "Fedorova, Olesya"]
[Black "Prochaieva, Alina"]
[Result "1-0"]
[ECO "B06"]
[WhiteElo "1516"]
[BlackElo "1247"]
[Annotator "NA"]
[PlyCount "57"]
[EventDate "2019.08.02"]
[EventType "swiss"]
[EventCountry "SVK"]
[SourceTitle "playchess.com"]
[Source "ChessBase"]
[SourceQuality "1"]
[TimeControl "40/5400+30:1800+30"]

1. e4 {[%emt 0:00:00]} g6 {[%emt 0:00:00]} 2. d4 Bg7 {[%emt 0:00:00]} 3. Nc3 {[%emt 0:00:00]} d6 {[%emt 0:00:00]} 4. h3 {[%emt 0:00:11]} a6 {[%emt 0:01:14]} 5. a4 {[%emt 0:00:31]} e6 {[%emt 0:05:18]} 6. Nf3 {[%emt 0:00:25]} Ne7 {[%emt 0:03:50]} 7. Bd3 {[%emt 0:00:53]} Nd7 {[%emt 0:04:41]} 8. O-O {[%emt 0:01:53]} O-O {[%emt 0:04:42]} 9. Be3 {[%emt 0:01:31]} b6 {[%emt 0:07:32]} 10. Nd2 {[%emt 0:03:42]} Bb7 {[%emt 0:02:27]} 11. f4 {[%emt 0:04:07]} c5 {[%emt 0:06:16]} 12. Nf3 {[%emt 0:05:14]} Rc8 {[%emt 0:12:55]} 13. Kh2 {[%emt 0:09:45]} f5 {[%emt 0:10:51]} 14. Ng5 {[%emt 0:09:26]} cxd4 {[%emt 0:09:00]} 15. Nxe6 {[%emt 0:00:49]} Qe8 {[%emt 0:01:08]} 16. Nxg7 {[%emt 0:00:54]} Kxg7 {[%emt 0:00:42]} 17. Bxd4+ {[%emt 0:00:12]} Kg8 {[%emt 0:05:47]} 18. Qe2 {[%emt 0:02:44]} Qf7 {[%emt 0:06:19]} 19. b3 {[%emt 0:07:55]} fxe4 {[%emt 0:05:00]} 20. Nxe4 {[%emt 0:01:11]} Nf5 {[%emt 0:04:01]} 21. Bb2 {[%emt 0:01:49]} Rfe8 {[%emt 0:03:14]} 22. Qf3 {[%emt 0:11:24]} Rc7 {[%emt 0:03:23]} 23. Rae1 {[%emt 0:01:41]} Kf8 {[%emt 0:02:21]} 24. Qf2 {[%emt 0:01:59]} Nc5 {[%emt 0:00:38]} 25. Ng5 {[%emt 0:02:42]} Qd7 {[%emt 0:00:25]} 26. Bxf5 {[%emt 0:01:05]} gxf5 {[%emt 0:00:35]} 27. Qd4 {[%emt 0:01:17]} Rxe1 {[%emt 0:00:34]} 28. Qh8+ {[%emt 0:01:38]} Ke7 {[%emt 0:00:14]} 29. Bf6# {[%emt 0:00:23]} 1-0

[Event "EYCC Girls-U10 2019"]
[Site "Bratislava"]
[Date "2019.08.09"]
[Round "8.5"]
[White "Toth, Lili"]
[Black "Goriachkina, Oksana"]
[Result "1-0"]
[ECO "D18"]
[WhiteElo "2199"]
[BlackElo "1417"]
[Annotator "NA"]
[PlyCount "145"]
[EventDate "2019.08.02"]
[EventType "swiss"]
[EventCountry "SVK"]
[SourceTitle "playchess.com"]
[Source "ChessBase"]
[SourceQuality "1"]
[TimeControl "40/5400+30:1800+30"]

1. d4 d5 2. c4 c6 3. Nf3 Nf6 4. Nc3 dxc4 5. a4 Bf5 6. e3 e6 7. Bxc4 Bb4 8. O-O {[%emt 0:13:47]} O-O 9. Bd2 c5 10. Ne2 Bxd2 11. Qxd2 Ne4 12. Qd1 Nd7 13. Nc3 Ndf6 14. h3 Qb6 {[%emt 1:36:54]} 15. Qb3 Qxb3 16. Bxb3 cxd4 17. exd4 Rac8 18. Rac1 Rfd8 19. Rfd1 h6 20. Kf1 a6 21. Ke2 Rc7 22. Nxe4 Rxc1 23. Nxf6+ gxf6 24. Rxc1 {[%emt 1:18:10]} Be4 {[%emt 0:00:00]} 25. Ke3 {[%emt 0:01:17]} f5 {[%emt 0:00:00]} 26. Rc7 {[%emt 0:02:14]} b5 27. Ne5 bxa4 28. Bxa4 Rf8 29. g3 Bg2 30. h4 Bf1 {[%emt 0:00:00]} 31. Nd3 {[%emt 0:08:09]} Rb8 {[%emt 0:00:00]} 32. b3 {[%emt 0:00:10]} Rd8 {[%emt 0:00:00]} 33. Rc1 {[%emt 0:00:30]} Bxd3 {[%emt 0:00:00]} 34. Kxd3 e5 35. Rc4 Kf8 36. Ke3 exd4+ 37. Rxd4 Rc8 38. Kd2 Rc5 39. b4 Re5 40. f4 Re6 41. Bd7 Rg6 42. Rd3 Rf6 43. Ke2 Rb6 44. Rd4 Rf6 45. b5 axb5 46. Bxb5 {[%emt 0:06:23]} Kg7 {[%emt 0:00:00]} 47. Bd3 {[%emt 0:00:41]} h5 {[%emt 0:00:00]} 48. Rd5 {[%emt 0:01:09]} Kg6 {[%emt 0:00:00]} 49. Re5 {[%emt 0:00:14]} Rd6 {[%emt 0:00:00]} 50. Rxf5 Kg7 51. Rxh5 {[%emt 0:02:27]} Rb6 52. Rg5+ Kh6 53. Be4 Re6 54. Kf3 Ra6 55. Rf5 Kg7 56. Bd5 f6 57. Be4 Ra3+ 58. Kg4 Re3 59. Bf3 Re8 60. Rd5 Kh6 61. h5 Re6 62. Kh4 Re3 63. Bg4 Re8 64. Bf5 Rb8 65. Rd7 Rb7 66. g4 Rxd7 67. Bxd7 Kg7 68. g5 fxg5+ 69. fxg5 Kf7 {[%emt 0:28:37]} 70. Bf5 {[%emt 0:22:40]} Kg7 {[%emt 0:00:27]} 71. h6+ Kh8 72. g6 Kg8 73. g7 1-0

[Event "EYCC Girls-U10 2019"]
[Site "Bratislava"]
[Date "2019.08.09"]
[Round "8.6"]
[White "Shatil, Or"]
[Black "Kusakina, Uliana"]
[Result "0-1"]
[ECO "B13"]
[WhiteElo "1185"]
[BlackElo "1364"]
[Annotator "NA"]
[PlyCount "82"]
[EventDate "2019.08.02"]
[EventType "swiss"]
[EventCountry "SVK"]
[SourceTitle "playchess.com"]
[Source "ChessBase"]
[SourceQuality "1"]
[TimeControl "40/5400+30:1800+30"]

1. e4 {[%emt 0:00:00]} c6 {[%emt 0:00:00]} 2. d4 {[%emt 0:00:00]} d5 {[%emt 0:00:46]} 3. exd5 {[%emt 0:00:00]} cxd5 {[%emt 0:00:36]} 4. Bd3 {[%emt 0:00:01]} Nc6 {[%emt 0:00:46]} 5. c3 {[%emt 0:00:10]} Nf6 {[%emt 0:01:04]} 6. Bf4 {[%emt 0:00:07]} g6 {[%emt 0:01:22]} 7. Nf3 {[%emt 0:00:52]} Bg7 {[%emt 0:00:31]} 8. O-O {[%emt 0:00:55]} O-O {[%emt 0:01:02]} 9. h3 {[%emt 0:01:56]} Bf5 {[%emt 0:02:10]} 10. Re1 {[%emt 0:03:49]} Bxd3 {[%emt 0:05:55]} 11. Qxd3 {[%emt 0:00:05]} Ne4 {[%emt 0:01:49]} 12. Nbd2 {[%emt 0:00:57]} f5 {[%emt 0:02:03]} 13. Ng5 {[%emt 0:02:42]} Nxg5 {[%emt 0:01:20]} 14. Bxg5 {[%emt 0:00:17]} h6 {[%emt 0:00:22]} 15. Bf4 {[%emt 0:02:11]} g5 {[%emt 0:01:28]} 16. Bh2 {[%emt 0:00:10]} Qd7 {[%emt 0:03:04]} 17. Nb3 {[%emt 0:01:14]} b6 {[%emt 0:01:01]} 18. Re2 {[%emt 0:01:58]} f4 {[%emt 0:01:42]} 19. Rae1 Rf6 {[%emt 0:02:40]} 20. f3 {[%emt 0:14:20]} Kh8 {[%emt 0:00:56]} 21. Qb5 {[%emt 0:03:59]} e6 {[%emt 0:09:37]} 22. Nc1 {[%emt 0:03:49]} Rd8 {[%emt 0:02:49]} 23. Qb3 {[%emt 0:04:06]} Rdf8 {[%emt 0:02:16]} 24. Nd3 {[%emt 0:01:45]} Rg6 {[%emt 0:01:47]} 25. Qc2 {[%emt 0:01:43]} Qe8 {[%emt 0:03:53]} 26. b4 {[%emt 0:05:22]} a6 {[%emt 0:05:41]} 27. a4 {[%emt 0:01:12]} Qf7 {[%emt 0:04:32]} 28. Nf2 {[%emt 0:07:40]} h5 {[%emt 0:02:04]} 29. b5 {[%emt 0:02:58]} axb5 {[%emt 0:00:22]} 30. axb5 {[%emt 0:00:02]} Na5 {[%emt 0:00:18]} 31. Ra1 {[%emt 0:04:05]} Nc4 {[%emt 0:02:59]} 32. Qa4 {[%emt 0:02:49]} Qf5 {[%emt 0:02:09]} 33. Qb4 {[%emt 0:03:53]} Ne3 {[%emt 0:00:55]} 34. Ra7 {[%emt 0:01:43]} g4 {[%emt 0:02:07]} 35. hxg4 {[%emt 0:03:25]} hxg4 {[%emt 0:02:47]} 36. fxg4 {[%emt 0:01:11]} Nxg4 {[%emt 0:00:34]} 37. Nxg4 {[%emt 0:01:05]} Rxg4 {[%emt 0:01:15]} 38. Qe7 {[%emt 0:06:53]} f3 {[%emt 0:01:54]} 39. Rb2 {[%emt 0:13:53]} f2+ {[%emt 0:00:48]} 40. Kh1 {[%emt 0:00:00]} f1=Q+ {[%emt 0:00:00]} 41. Bg1 {[%emt 0:02:57]} Qh5+ {[%emt 0:00:26]} 0-1

[Event "EYCC Girls-U10 2019"]
[Site "Bratislava"]
[Date "2019.08.09"]
[Round "8.7"]
[White "Mkrtchyan, Anahit H."]
[Black "Arzur, Maia"]
[Result "0-1"]
[ECO "B03"]
[WhiteElo "1155"]
[BlackElo "1507"]
[Annotator "NA"]
[PlyCount "86"]
[EventDate "2019.08.02"]
[EventType "swiss"]
[EventCountry "SVK"]
[SourceTitle "playchess.com"]
[Source "ChessBase"]
[SourceQuality "1"]
[TimeControl "40/5400+30:1800+30"]

1. e4 Nf6 2. e5 Nd5 3. c4 Nb6 4. d4 d6 5. exd6 exd6 6. Nc3 Be7 7. Bd3 Bf6 8. Be3 Nc6 9. Nge2 Bg4 10. h3 Bxe2 11. Bxe2 O-O 12. O-O d5 13. c5 Nc8 14. Qb3 N8e7 15. Rad1 Nf5 16. Qxd5 Nfxd4 17. Bxd4 Bxd4 18. Qb3 Rb8 19. Bf3 Qf6 20. Nd5 Qg5 21. Nxc7 Rfc8 22. Nb5 Qxc5 23. Bd5 Rf8 24. Nxd4 Nxd4 25. Qc4 Qxc4 26. Bxc4 Nc6 27. Rfe1 Rfd8 28. Kf1 Kf8 29. Ke2 Nd4+ 30. Kf1 Nc6 31. f3 Rxd1 32. Rxd1 Rd8 33. Rxd8+ Nxd8 34. Ke2 Ke7 35. Ke3 Kd6 36. Ke4 b6 37. b3 a5 38. a4 Kc5 39. f4 Kd6 40. f5 h6 41. g4 f6 42. h4 Nc6 43. Kf4 Nd4 0-1

[Event "EYCC Girls-U10 2019"]
[Site "Bratislava"]
[Date "2019.08.09"]
[Round "8.8"]
[White "Bendik, Margarita"]
[Black "Sidorenja, Milena"]
[Result "0-1"]
[ECO "B40"]
[WhiteElo "1188"]
[BlackElo "1573"]
[Annotator "NA"]
[PlyCount "78"]
[EventDate "2019.08.02"]
[EventType "swiss"]
[EventCountry "SVK"]
[SourceTitle "playchess.com"]
[Source "ChessBase"]
[SourceQuality "1"]
[TimeControl "40/5400+30:1800+30"]

1. e4 c5 2. Nf3 e6 3. d4 cxd4 4. Nxd4 Nf6 5. Bd3 Nc6 6. Nxc6 bxc6 7. O-O Be7 8. c4 d6 9. Nc3 O-O 10. Qc2 h6 11. Re1 Ng4 12. h3 Ne5 13. Bf1 Bg5 14. Rd1 Ng6 15. Bxg5 Qxg5 16. Rxd6 Nf4 17. Kh1 e5 18. Rxc6 f5 19. g3 Ne6 20. Qc1 f4 21. Ne2 fxg3 22. fxg3 Qg6 23. Qe3 Bb7 24. Rd6 Bxe4+ 25. Kh2 Rf3 26. Qg1 Raf8 27. Bg2 Rf2 28. Nf4 R8xf4 29. Rxe6 Qxe6 30. gxf4 Rxg2+ 31. Qxg2 Bxg2 32. Kxg2 exf4 33. Rf1 Qe2+ 34. Rf2 Qxc4 35. a3 g5 36. Kf3 Qd3+ 37. Kg2 h5 38. a4 Qg3+ 39. Kf1 Qxh3+ 0-1

[Event "EYCC Girls-U10 2019"]
[Site "Bratislava"]
[Date "2019.08.09"]
[Round "8.9"]
[White "Eros, Vivien"]
[Black "Piddubna, Bozhena"]
[Result "0-1"]
[ECO "D02"]
[WhiteElo "1251"]
[BlackElo "1444"]
[Annotator "NA"]
[PlyCount "62"]
[EventDate "2019.08.02"]
[EventType "swiss"]
[EventCountry "SVK"]
[SourceTitle "playchess.com"]
[Source "ChessBase"]
[SourceQuality "1"]
[TimeControl "40/5400+30:1800+30"]

1. d4 {[%emt 0:00:00]} d5 {[%emt 0:01:05]} 2. Nf3 Nf6 {[%emt 0:00:09]} 3. Bf4 {[%emt 0:00:00]} g6 {[%emt 0:00:10]} 4. Nbd2 {[%emt 0:00:06]} Bg7 {[%emt 0:00:17]} 5. e3 {[%emt 0:03:52]} O-O {[%emt 0:03:30]} 6. Bd3 {[%emt 0:03:22]} b6 {[%emt 0:00:15]} 7. e4 {[%emt 0:00:27]} dxe4 {[%emt 0:01:34]} 8. Nxe4 {[%emt 0:00:22]} Bb7 {[%emt 0:00:39]} 9. Nxf6+ {[%emt 0:02:08]} Bxf6 {[%emt 0:00:13]} 10. c3 {[%emt 0:00:11]} Nd7 {[%emt 0:01:35]} 11. O-O c5 {[%emt 0:01:36]} 12. Be2 {[%emt 0:09:56]} cxd4 {[%emt 0:02:20]} 13. Nxd4 {[%emt 0:00:31]} e5 {[%emt 0:00:36]} 14. Bh6 {[%emt 0:00:51]} exd4 {[%emt 0:00:10]} 15. Bxf8 {[%emt 0:00:09]} Nxf8 {[%emt 0:00:46]} 16. c4 {[%emt 0:02:07]} Ne6 {[%emt 0:00:41]} 17. f4 {[%emt 0:06:57]} Ng7 {[%emt 0:02:21]} 18. Bf3 {[%emt 0:03:13]} Bxf3 {[%emt 0:00:57]} 19. Qxf3 {[%emt 0:00:07]} Rc8 {[%emt 0:02:34]} 20. b3 {[%emt 0:00:10]} Nf5 {[%emt 0:03:23]} 21. Rfd1 {[%emt 0:12:48]} Rc7 {[%emt 0:11:33]} 22. Rd3 {[%emt 0:08:23]} Re7 {[%emt 0:02:57]} 23. g4 {[%emt 0:15:38]} Nh4 {[%emt 0:04:02]} 24. Qf2 {[%emt 0:01:10]} Re3 {[%emt 0:02:28]} 25. Rad1 {[%emt 0:01:20]} Qc8 {[%emt 0:12:32]} 26. h3 {[%emt 0:03:15]} Qa8 {[%emt 0:04:14]} 27. Rxe3 {[%emt 0:17:42]} dxe3 {[%emt 0:00:13]} 28. Qe2 {[%emt 0:00:49]} Nf3+ {[%emt 0:04:02]} 29. Kf1 {[%emt 0:00:26]} Nh2+ {[%emt 0:02:24]} 30. Kg1 {[%emt 0:05:52]} Nf3+ {[%emt 0:00:15]} 31. Kf1 {[%emt 0:00:14]} Nd4 {[%emt 0:00:11]} 0-1